bitfinex/quotes_ETHUSD_20220215
["timestamp","ask_amount","ask_price","bid_price","bid_amount"]
[1644958667165,0.99199355,3109.9,3109.7,0.00434179]
[1644958667361,1.79599355,3109.9,3109.7,0.00434179]
[1644958667560,4.90419878,3109.9,3109.6,0.00272557]
[1644958667763,4.95494327,3109.9,3109.6,0.00272557]
[1644958667960,4.96274507,3109.9,3109.6,0.00272557]
[1644958668165,4.96274507,3109.9,3109.3,0.00434179]
[1644958668166,4.93703864,3109.9,3109.3,0.00434179]
[1644958668362,4.93703864,3109.9,3109.6,0.00196514]
[1644958668363,0.80413,3109.8,3109.6,0.00196514]
[1644958669266,0.80413,3109.8,3109.4,0.67069392]
[1644958669518,0.80413,3109.8,3109.5,0.00434179]
[1644958670523,0.80413,3109.8,3109.2,1.15206732]
[1644958670722,0.99199355,3109.9,3109.5,0.00434179]
[1644958670923,0.99199355,3109.9,3109.4,0.00196226]
[1644958671325,0.99199355,3109.9,3109.4,0.67256318]
[1644958671524,0.99199355,3109.9,3109.5,0.00434179]
[1644958671724,0.99199355,3109.9,3109.6,0.67060092]
[1644958671926,0.99199355,3109.9,3109.7,0.80833179]
[1644958672126,1.60799,3110.2,3109.7,0.80833179]
[1644958672331,1.60799,3110.2,3109.8,0.00434179]
[1644958672725,1.60799,3110.2,3109.5,0.00434179]
[1644958673025,0.80398,3110.0,3109.6,0.67041083]
[1644958673262,0.80398,3110.0,3109.7,0.00434179]
[1644958673661,0.80398,3110.0,3109.8,1.60796]
[1644958673862,0.80398,3110.0,3109.8,1.61230179]
[1644958674262,0.80398,3110.0,3109.8,0.80832179]
[1644958674661,0.80398,3110.0,3109.8,1.61232179]
[1644958676063,1.4491,3110.6,3109.8,1.61232179]
[1644958676264,2.9283,3110.9,3109.9,2.27785201]
[1644958676563,0.68373811,3110.8,3110.2,0.80371]
[1644958676763,3.09661697,3111.1,3110.3,0.6746032]
[1644958677016,0.68377524,3111.0,3110.3,0.00434179]
[1644958677214,0.68377524,3111.0,3109.8,0.00434179]
[1644958677424,1.1838,3111.2,3110.3,1.60747]
[1644958677425,0.94111267,3110.5,3110.3,1.60747]
[1644958677715,3.3695635,3111.1,3109.9,4.68884815]
[1644958677716,3.3695635,3111.1,3110.5,0.80377]
[1644958677916,3.09423511,3111.2,3110.6,0.00434179]
[1644958678119,0.68374247,3111.1,3110.6,0.00434179]
[1644958678316,0.68374247,3111.1,3110.1,0.00434179]
[1644958678517,3.92230954,3111.0,3110.4,1.60753]
[1644958678737,0.68374247,3110.9,3110.6,0.80381]
[1644958678924,3.1195,3111.7,3110.7,0.67055847]
[1644958679124,0.5,3111.8,3110.7,0.67055847]
[1644958679125,0.5,3111.8,3110.7,5.13835847]
[1644958679325,0.5,3111.8,3110.8,1.463]
[1644958679519,0.5,3111.8,3111.0,0.3745]
[1644958679721,0.00289411,3112.1,3111.1,0.463]
[1644958679924,0.00289411,3112.1,3111.5,0.80336]
[1644958680227,1.01113101,3112.4,3111.5,0.80336]
[1644958680424,0.00093947,3112.1,3111.5,0.80336]
[1644958680622,0.85277879,3111.9,3111.5,0.80336]
[1644958680889,0.85277879,3111.9,3111.0,0.80367]
[1644958680890,1.60733,3111.8,3111.0,0.80367]
[1644958681081,0.25,3111.7,3110.6,9.94773]
[1644958681287,0.80374,3111.5,3110.6,3.83653]
[1644958681780,0.80374,3111.5,3110.7,0.90551599]
[1644958681982,0.80374,3111.5,3110.9,0.93453086]
[1644958682381,1.17188284,3111.4,3110.9,0.93453086]
[1644958682585,1.17188284,3111.4,3110.9,0.80947236]
[1644958682586,0.8037,3111.3,3110.9,0.80947236]
[1644958682785,0.8037,3111.3,3110.6,5.44389]
[1644958682786,1.1037,3111.3,3110.3,1.61185179]
[1644958682985,0.3,3111.3,3110.3,0.00434179]
[1644958683186,2.77966764,3111.4,3109.9,4.44625]
[1644958683187,3.07966764,3111.4,3110.0,0.00434179]
[1644958683380,3.07966764,3111.4,3110.3,0.80387]
[1644958683584,1.47188284,3111.4,3110.4,0.00434179]
[1644958683787,1.17188284,3111.4,3110.5,0.8038]
[1644958683983,3.01891138,3112.0,3110.5,0.8038]
[1644958684182,3.01891138,3112.0,3110.6,3.35053191]
[1644958684383,4.1881978,3112.1,3110.7,1.26658]
[1644958684612,2.9903978,3112.1,3110.7,1.26658]
[1644958684812,0.80351,3112.0,3110.9,0.8035432]
[1644958685015,1.12605326,3111.7,3110.8,1.03499761]
[1644958686214,1.12605326,3111.7,3110.4,2.41511179]
[1644958686215,1.12605326,3111.7,3110.6,0.8036443]
[1644958686613,1.12605326,3111.7,3111.0,1.60735]
[1644958686917,0.80366,3111.5,3110.4,0.00434179]
[1644958687124,0.25,3111.4,3110.0,0.00434179]
[1644958687316,1.11496768,3110.9,3110.0,0.00434179]
[1644958687514,0.85764138,3111.4,3110.0,0.00434179]
[1644958687722,1.07064138,3111.3,3110.0,0.00434179]
[1644958688117,0.60764138,3111.2,3110.0,0.00434179]
[1644958688363,0.80394,3110.7,3110.0,0.00434179]
[1644958688567,0.80394,3110.7,3110.2,0.80389]
[1644958688763,0.80394,3110.7,3110.3,0.00434179]
[1644958689163,0.80394,3110.7,3110.3,1.92788125]
[1644958689367,0.463,3111.6,3110.3,1.92353946]
[1644958689567,1.76534138,3111.7,3110.4,0.00434179]
[1644958689865,0.80369,3111.3,3110.8,0.8037]
[1644958690269,1.01595014,3111.2,3110.8,0.8037]
[1644958690964,1.81966014,3111.2,3110.9,0.80368]
[1644958692053,0.90764138,3111.7,3110.9,1.60739]
[1644958692054,1.90732,3111.7,3110.9,1.60739]
[1644958692228,1.90732,3111.7,3111.1,0.80364]
[1644958692229,1.60732,3111.7,3111.1,0.80364]
[1644958693331,1.07939811,3111.6,3111.1,0.80364]
[1644958693933,0.80366,3111.5,3111.1,0.80364]
[1644958694732,0.80366,3111.5,3111.2,0.80364]
[1644958695343,0.80366,3111.5,3111.2,1.60727]
[1644958696167,0.80366,3111.5,3110.9,2.41089]
[1644958697570,0.80366,3111.5,3111.0,0.8037]
[1644958697770,0.80366,3111.5,3111.0,1.60737]
[1644958697974,0.80366,3111.5,3111.0,0.80367]
[1644958698369,0.80366,3111.5,3110.9,2.41089]
[1644958698970,0.65548131,3111.4,3111.0,0.70137282]
[1644958699176,0.80369,3111.3,3111.1,0.80367]
[1644958699388,2.21507528,3112.0,3111.1,4.16741695]
[1644958699389,0.65548131,3111.2,3111.1,4.16741695]
[1644958699613,4.90844138,3112.2,3111.3,1.60696]
[1644958699818,4.90844138,3112.2,3111.3,4.99099614]
[1644958699819,0.65831872,3112.1,3111.3,4.99099614]
[1644958700013,0.6556666,3112.0,3111.3,1.60696]
[1644958700216,0.6556666,3111.9,3111.3,1.60696]
[1644958700413,0.00265212,3112.1,3111.4,3.41889433]
[1644958700414,0.6556666,3111.8,3111.4,3.41889433]
[1644958700620,0.6556666,3111.7,3111.4,5.02586433]
[1644958700818,0.25,3112.4,3111.5,0.7009426]
[1644958701015,0.00265224,3112.1,3111.6,3.63925729]
[1644958701214,0.00265224,3112.1,3111.5,1.60684]
[1644958701413,0.00265224,3112.1,3111.6,4.05168001]
[1644958701614,0.80612224,3112.1,3111.7,0.80342]
[1644958701814,0.65529059,3112.0,3111.7,0.80342]
[1644958702215,0.65529059,3111.9,3111.7,0.80342]
[1644958702415,0.00265242,3112.1,3111.7,0.80342]
[1644958702614,0.65794646,3112.1,3111.7,0.80342]
[1644958702814,0.80351,3111.9,3111.7,0.80342]
[1644958703269,0.25,3112.4,3111.8,1.60693]
[1644958703467,0.25,3112.4,3111.6,1.60684]
[1644958703468,0.65675161,3111.7,3111.6,1.60684]
[1644958707025,1.31101473,3111.7,3111.6,1.60684]
[1644958707227,0.65675161,3111.7,3111.6,1.60684]
[1644958708228,1.31099889,3111.7,3111.6,1.60684]
[1644958709429,0.65675161,3111.7,3111.6,1.60684]
[1644958713764,1.29643466,3111.7,3111.6,1.60684]
[1644958714823,1.29643466,3111.7,3111.4,2.41044]
[1644958715024,0.63968305,3111.6,3111.2,1.60717]
[1644958716226,1.44330305,3111.6,3111.3,1.60721]
[1644958716424,0.63968305,3111.5,3111.3,1.60721]
[1644958717223,0.63968305,3111.4,3111.3,1.60721]
[1644958717423,0.63968305,3111.4,3111.3,0.80363]
[1644958717928,0.63968305,3111.4,3110.5,2.2226]
[1644958718122,0.63968305,3111.4,3110.8,0.71672594]
[1644958718371,1.54732443,3111.4,3110.2,0.00434179]
[1644958718569,1.60779,3111.2,3110.3,0.71679974]
[1644958718776,2.41588741,3111.1,3110.3,1.73177361]
[1644958718970,2.41588741,3111.1,3110.4,0.71679974]
[1644958718971,0.63968305,3111.0,3110.4,0.71679974]
[1644958719172,0.63968305,3111.0,3110.5,0.80385]
[1644958719571,2.24738305,3111.0,3110.5,0.80385]
[1644958719972,1.44353305,3110.9,3110.5,0.80385]
[1644958720175,0.63968305,3110.8,3110.5,1.60767]
[1644958720575,2.24750305,3110.8,3110.5,1.60767]
[1644958720773,0.63968305,3110.7,3110.5,1.60767]
[1644958721572,1.44359305,3110.7,3110.5,1.60767]
[1644958721771,0.63968305,3110.6,3110.5,1.60767]
[1644958722021,0.63968305,3110.6,3110.5,1.52114545]
[1644958722417,0.636,3111.2,3110.5,1.52114545]
[1644958722418,0.63968305,3111.0,3110.5,1.52114545]
[1644958722616,0.63968305,3110.9,3110.6,1.52104545]
[1644958722817,0.25,3111.2,3110.7,0.71726434]
[1644958722818,0.63968305,3110.8,3110.7,0.71726434]
[1644958723216,0.63968305,3111.3,3110.7,1.69334056]
[1644958723417,0.63968305,3111.2,3110.7,0.97607622]
[1644958723618,0.63968305,3111.1,3110.7,0.80375]
[1644958723920,1.60744,3111.4,3110.8,0.717362]
[1644958723921,0.63968305,3111.0,3110.8,0.717362]
[1644958724117,0.63968305,3110.9,3110.7,0.12468623]
[1644958724318,0.63968305,3110.8,3110.7,0.12468623]
[1644958726373,0.63968305,3110.8,3110.7,0.85451227]
[1644958726579,1.6074,3111.4,3110.7,0.85451227]
[1644958726774,5.67929299,3111.7,3110.8,1.60716]
[1644958726972,0.65675161,3111.7,3111.0,0.80355]
[1644958727973,0.65675161,3111.7,3111.3,1.895262]
[1644958728174,0.65675161,3111.7,3111.3,2.698762]
[1644958728772,0.65675161,3111.7,3111.3,1.60705]
[1644958728973,0.65675161,3111.7,3111.4,0.80351]
[1644958729183,1.46031161,3111.7,3111.5,0.80362]
[1644958730421,2.65389397,3111.7,3111.5,0.80362]
[1644958730619,2.65389397,3111.7,3111.5,0.79824111]
[1644958730819,2.65389397,3111.7,3111.5,0.79645611]
[1644958731220,3.26153535,3111.7,3111.5,0.79645611]
[1644958731621,1.46031161,3111.7,3111.5,0.79645611]
[1644958731825,2.06795299,3111.7,3111.5,0.79645611]
[1644958735571,0.60764138,3111.6,3111.5,0.79645611]
[1644958735771,0.60764138,3111.6,3111.4,2.41061]
[1644958736372,0.60764138,3111.6,3111.4,1.60705]
[1644958736572,2.06795299,3111.7,3111.4,1.60705]
[1644958736773,0.60764138,3111.6,3111.4,1.60705]
[1644958737218,0.60764138,3111.6,3111.4,0.80351]
[1644958737918,2.06795299,3111.7,3111.4,0.80351]
[1644958738121,1.46031161,3111.7,3111.4,0.80351]
[1644958738319,1.46031161,3111.7,3111.4,0.83621]
[1644958738919,0.67999466,3111.7,3111.4,0.83621]
[1644958739123,0.80345,3111.9,3111.4,5.909291]
[1644958739321,1.60689,3112.2,3111.4,5.909291]
[1644958739322,2.21453138,3112.2,3111.4,5.909291]
[1644958739525,0.00263679,3112.1,3111.4,5.909291]
[1644958739722,0.00263679,3112.1,3111.6,0.80337]
[1644958739921,0.00263679,3112.1,3111.7,0.85537629]
[1644958740330,0.80601679,3112.1,3111.7,1.65874009]
[1644958740529,1.41102138,3112.1,3111.7,1.65874009]
[1644958740776,1.41365828,3112.1,3111.8,1.60679]
[1644958741773,1.41102138,3112.1,3111.8,1.60679]
[1644958741971,1.41366827,3112.1,3111.8,1.60679]
[1644958742572,1.41366827,3112.1,3111.8,2.41025]
[1644958742772,1.41102138,3112.1,3111.9,0.80346]
[1644958742971,0.80338,3112.1,3111.9,0.80346]
[1644958743172,1.41366827,3112.1,3111.9,0.80346]
[1644958744174,1.41366827,3112.1,3111.8,0.14665173]
[1644958744175,0.80338,3112.1,3111.8,0.14665173]
[1644958744624,1.41102138,3112.1,3111.9,0.80346]
[1644958744828,0.60764138,3112.0,3111.9,0.80346]
[1644958745421,0.80338,3112.1,3111.9,0.80346]
[1644958745622,0.8060262,3112.1,3111.9,0.80346]
[1644958745821,0.8060262,3112.1,3111.8,0.14665173]
[1644958746022,2.56603688,3112.1,3111.8,0.95016173]
[1644958746223,1.9583955,3112.1,3111.8,0.95016173]
[1644958746422,1.9557493,3112.1,3111.8,0.95016173]
[1644958746622,0.80338,3112.1,3111.8,0.42945173]
[1644958746825,0.57787375,3112.0,3111.9,0.78158258]
[1644958747125,0.0026462,3112.1,3111.9,0.78158258]
[1644958747126,0.0026462,3112.1,3111.9,2.35856258]
[1644958747427,0.0026462,3112.1,3112.0,0.78158258]
[1644958747625,0.00430221,3112.8,3112.1,0.23453366]
[1644958747823,0.00430221,3113.0,3112.2,0.386]
[1644958748023,0.01488353,3113.1,3112.4,0.80299]
[1644958748273,0.01058132,3113.1,3112.6,0.803007]
[1644958748869,0.00430221,3113.2,3112.7,3.35195573]
[1644958749270,0.00430221,3113.2,3112.9,1.06781846]
[1644958749871,3.2212,3114.6,3113.1,0.80297]
[1644958749872,0.00430221,3113.3,3113.1,0.80297]
[1644958750079,0.61194359,3113.6,3113.1,0.80297]
[1644958750273,0.00430221,3113.4,3113.1,1.60591]
[1644958750473,0.00264563,3113.2,3113.1,1.60591]
[1644958750672,0.00264563,3113.2,3113.1,3.2116706]
[1644958750870,0.00264563,3113.2,3113.1,4.0145606]
[1644958751071,0.00264563,3113.2,3113.1,7.38511001]
[1644958751271,0.00430221,3113.6,3113.1,7.38511001]
[1644958751473,0.00430221,3113.6,3113.5,1.05034845]
[1644958751671,0.61139075,3113.8,3113.5,1.05034845]
[1644958751672,0.60764138,3113.7,3113.5,1.05034845]
[1644958751873,0.61194359,3113.7,3113.5,1.05034845]
[1644958752125,0.61194359,3113.7,3113.4,0.80289]
[1644958752726,0.61288107,3113.7,3113.4,0.80289]
[1644958753124,0.80826969,3113.7,3113.5,0.80294]
[1644958753724,0.80733221,3113.7,3113.5,0.80294]
[1644958754024,0.00430221,3113.7,3113.5,0.80294]
[1644958754224,0.0029006,3113.8,3113.5,0.80294]
[1644958754225,0.00720281,3113.8,3113.5,1.60598]
[1644958754826,0.61194359,3114.1,3113.5,1.60598]
[1644958755027,0.00430221,3113.9,3113.6,5.05786105]
[1644958755242,0.00290057,3113.8,3113.6,1.60599]
[1644958755427,0.00290057,3113.8,3113.6,4.92697065]
[1644958755632,0.00290057,3113.8,3113.6,1.60599]
[1644958755877,0.00290057,3113.8,3113.6,4.89979341]
[1644958756176,0.00430221,3114.3,3113.7,1.6058]
[1644958756377,0.01590263,3114.3,3114.0,0.84537054]
[1644958756775,0.57354401,3114.4,3114.0,0.84537054]
[1644958757075,0.80282,3114.5,3114.0,0.84537054]
[1644958757275,0.80282,3114.5,3114.0,1.64819054]
[1644958757478,0.80282,3114.5,3114.1,0.80283]
[1644958758478,0.80277,3114.7,3114.2,3.29670658]
[1644958758680,9.11160282,3115.1,3114.2,3.29670658]
[1644958758979,0.00290016,3114.5,3114.2,3.29670658]
[1644958759181,0.00290016,3114.5,3114.1,1.60567]
[1644958759625,0.80271,3114.9,3114.3,3.2109601]
[1644958759827,0.80271,3114.9,3114.5,0.80274]
[1644958761224,0.80560991,3114.9,3114.5,0.80274]
[1644958761625,0.80560991,3114.9,3114.5,1.60546]
[1644958762029,0.80271,3114.9,3114.5,1.60546]
[1644958762226,0.80268,3115.1,3114.6,1.6054]
[1644958762426,0.00289991,3114.9,3114.7,0.80266]
[1644958763029,0.00289991,3114.9,3114.7,1.60533]
[1644958763272,0.80268,3115.1,3114.7,1.60533]
[1644958763476,0.80268,3115.1,3114.9,1.10835896]
[1644958763673,0.00289985,3115.0,3114.9,0.0981589]
[1644958763873,0.80651985,3115.3,3114.9,0.0981589]
[1644958764074,0.80651985,3115.3,3115.0,0.14594005]
[1644958764273,0.83948995,3115.3,3115.0,0.14594005]
[1644958764675,0.80262,3115.3,3115.0,0.14594005]
[1644958765274,0.80262,3115.3,3115.1,0.80264]
[1644958766276,0.80262,3115.3,3115.1,1.60521]
[1644958767727,0.50677582,3115.2,3115.1,1.60521]
[1644958767921,0.50677582,3115.2,3115.1,0.80264]
[1644958771372,1.30956582,3115.2,3114.5,1.60564]
[1644958771573,0.50677582,3115.1,3113.9,0.19689673]
[1644958771774,0.50677582,3115.0,3113.9,0.19689673]
[1644958771971,0.0042807,3114.9,3113.9,0.19689673]
[1644958772171,0.00289967,3115.2,3113.9,0.19689673]
[1644958772372,0.00289967,3115.2,3114.4,1.60565]
[1644958772572,0.00718037,3115.2,3114.4,2.6483287]
[1644958772772,0.80268,3115.0,3114.8,1.12499892]
[1644958772973,0.0042807,3115.4,3114.8,1.12499892]
[1644958773176,0.25,3115.5,3114.9,3.32479016]
[1644958773177,0.0042807,3115.0,3114.9,3.32479016]
[1644958773375,0.00289966,3115.2,3114.8,1.34589892]
[1644958773577,0.00289966,3115.2,3115.0,1.00706083]
[1644958774175,0.0042807,3116.0,3115.4,0.84578876]
[1644958774372,0.0042807,3116.0,3115.4,2.45071876]
[1644958774373,0.00371877,3115.7,3115.4,2.45071876]
[1644958774626,0.5067102,3115.6,3115.4,2.45071876]
[1644958775126,0.5109909,3115.6,3115.4,2.45071876]
[1644958775326,0.5067102,3115.5,3115.4,3.20986]
[1644958775526,0.5067102,3115.5,3115.4,1.60493]
[1644958782635,0.5067102,3115.5,3115.4,1.63763]
[1644958784043,0.5067102,3115.5,3115.4,0.1787236]
[1644958788880,3.93585332,3115.5,3115.4,0.1787236]
[1644958789081,3.93585332,3115.5,3114.7,3.62588]
[1644958789082,3.93585332,3115.5,3114.7,2.40788]
[1644958789386,0.80285,3115.1,3114.3,1.60567]
[1644958789656,4.25581338,3115.0,3114.3,1.60567]
[1644958789862,0.88438512,3114.4,3113.7,1.07616996]
[1644958790059,3.72135629,3114.3,3113.7,1.07616996]
[1644958790258,0.5067102,3114.2,3113.7,2.68202996]
[1644958790464,0.80299,3114.0,3113.7,3.48501996]
[1644958791659,3.90997721,3114.0,3113.7,3.48501996]
[1644958791860,0.80309,3113.8,3113.7,1.07616996]
[1644958792459,0.0042807,3114.3,3113.7,1.07616996]
[1644958792460,1.60588,3114.2,3113.7,1.07616996]
[1644958792660,0.4882122,3114.1,3113.7,1.07616996]
[1644958792864,0.4839315,3114.0,3113.7,1.07616996]
[1644958793163,1.10890227,3115.3,3114.1,0.19570835]
[1644958793392,0.5,3115.3,3114.4,2.4075467]
[1644958793599,0.60890227,3115.8,3114.5,3.71308762]
[1644958793794,0.15687463,3115.8,3114.5,0.3]
[1644958793995,0.65687463,3115.9,3114.6,1.0]
[1644958794198,0.65687463,3115.9,3114.7,1.60501]
[1644958794199,0.5,3115.9,3114.7,1.60501]
[1644958794392,0.5,3115.9,3115.0,2.4074033]
[1644958794600,0.5,3115.9,3115.2,0.8025]
[1644958794794,1.60505,3116.0,3115.2,0.8025]
[1644958794994,0.80248,3115.9,3115.2,0.8025]
[1644958795393,0.80248,3115.9,3115.4,0.80249]
[1644958795596,0.81186969,3115.7,3114.6,1.60511]
[1644958795795,1.60543,3115.5,3115.0,0.80275]
[1644958795997,0.80272,3115.4,3115.0,0.80275]
[1644958796795,1.91458969,3115.4,3114.7,1.60543]
[1644958797024,0.80282,3115.2,3114.7,1.60543]
[1644958797228,1.10282,3115.2,3114.7,1.60543]
[1644958797427,1.11186969,3115.2,3114.7,1.60543]
[1644958797626,0.3,3115.2,3114.7,1.60543]
[1644958798025,0.80284,3115.0,3114.7,1.60543]
[1644958798226,1.06186969,3115.5,3114.7,1.60543]
[1644958798426,0.00290708,3115.4,3114.7,1.60543]
[1644958798627,0.00290708,3115.4,3114.8,3.25061362]
[1644958798829,0.00290708,3115.4,3114.7,2.40816]
[1644958798830,0.00290708,3115.4,3114.9,0.79812868]
[1644958799036,0.00290708,3115.4,3114.4,1.386]
[1644958799037,1.61738677,3115.4,3114.8,0.80258]
[1644958799232,1.61738677,3115.4,3114.4,1.6056]
[1644958799233,0.81186969,3115.2,3114.4,1.6056]
[1644958799428,0.81186969,3115.1,3114.4,1.6056]
[1644958799627,0.81186969,3114.9,3114.1,0.80288]
[1644958799832,1.06186969,3114.9,3114.2,0.00290823]
[1644958800028,0.81186969,3114.9,3114.4,0.80288]
[1644958800237,0.81477681,3115.4,3114.4,0.80288]
[1644958800431,0.81186969,3115.3,3114.4,0.80288]
[1644958800635,0.81186969,3115.1,3114.5,0.80264]
[1644958800890,0.81186969,3115.0,3114.3,1.60562]
[1644958801082,0.81186969,3115.0,3114.2,0.00290817]
[1644958801083,0.81186969,3114.8,3114.2,0.00290817]
[1644958801383,1.75510387,3114.6,3114.2,0.00290817]
[1644958801581,0.25,3114.7,3114.2,0.00290817]
[1644958801980,0.25,3114.7,3113.6,3.5]
[1644958802182,0.80293,3114.5,3114.3,0.80292]
[1644958803382,0.80293,3114.5,3114.3,1.60579]
[1644958804081,0.80293,3114.5,3114.3,0.14662209]
[1644958804282,0.80293,3114.5,3114.0,1.60566]
[1644958804576,2.07202967,3114.5,3114.4,0.00964874]
[1644958804761,2.07202967,3114.5,3114.2,0.00280987]
[1644958805161,0.80308,3114.3,3114.2,0.00280987]
[1644958805362,1.86832064,3114.3,3113.2,1.60617]
[1644958805562,0.6108925,3114.2,3113.2,4.90879557]
[1644958805763,1.67613314,3114.3,3114.2,0.00280986]
[1644958805964,0.8608925,3114.7,3114.2,0.00280986]
[1644958806164,0.25,3114.7,3114.2,0.00280986]
[1644958806366,1.61718356,3115.1,3114.2,0.80540986]
[1644958806367,0.6108925,3114.9,3114.2,0.80540986]
[1644958806562,0.6108925,3114.7,3114.2,0.00280986]
[1644958806762,0.6108925,3114.8,3114.1,1.60545]
[1644958806960,0.6108925,3114.8,3114.2,0.0018893]
[1644958807361,0.6108925,3114.8,3114.3,2.4080939]
[1644958807666,4.2,3114.7,3113.8,0.0019302]
[1644958807865,0.6108925,3114.4,3113.2,3.5]
[1644958808061,0.6108925,3114.4,3114.2,0.0018893]
[1644958808781,0.6108925,3114.3,3114.2,0.0018893]
[1644958808978,1.047927,3114.5,3114.3,0.00964874]
[1644958808979,2.23478356,3114.4,3114.3,0.00964874]
[1644958809179,2.25269462,3114.4,3114.1,0.8029]
[1644958809478,2.25269462,3114.4,3113.9,1.6058]
[1644958809880,0.6108925,3114.3,3113.9,1.6058]
[1644958810081,2.50269462,3114.4,3113.9,1.6058]
[1644958810479,2.50269462,3114.4,3114.2,0.00964874]
[1644958810779,2.50269462,3114.4,3113.9,2.41154999]
[1644958810980,1.89180212,3114.4,3113.9,2.41154999]
[1644958811180,2.50269462,3114.4,3113.9,2.41154999]
[1644958811381,0.6108925,3114.2,3113.9,2.40877]
[1644958811680,0.80293,3114.1,3114.0,0.00277996]
[1644958812136,2.50269462,3114.4,3114.0,0.00277996]
[1644958812429,0.28582212,3114.4,3114.0,0.00277996]
[1644958812628,0.28582212,3114.4,3113.9,2.40877]
[1644958812629,0.03582212,3114.4,3113.9,2.40877]
[1644958812933,0.03582212,3114.4,3114.0,0.00277993]
[1644958813129,0.37468191,3114.3,3114.0,1.79187682]
[1644958813335,0.37468191,3114.3,3114.0,0.00277993]
[1644958813336,0.6108925,3114.3,3114.0,0.00277993]
[1644958813534,0.98557441,3114.3,3114.2,0.00964874]
[1644958813930,1.17757191,3114.3,3114.2,0.00964874]
[1644958814328,1.19548297,3114.3,3114.2,0.00964874]
[1644958814529,1.21339403,3114.3,3114.2,0.00964874]
[1644958815546,0.41050403,3114.3,3114.2,0.00964874]
[1644958815986,0.41050403,3114.3,3114.2,0.99561068]
[1644958816378,0.41050403,3114.3,3114.2,0.00964874]
[1644958818286,0.41050403,3114.3,3114.2,0.99565557]
[1644958818478,0.41050403,3114.3,3114.2,0.00964874]
[1644958818677,0.41050403,3114.3,3114.2,0.99565955]
[1644958820329,0.41050403,3114.3,3114.2,0.99579164]
[1644958820531,1.02139653,3114.3,3114.2,0.00964874]
[1644958821133,0.41050403,3114.3,3114.2,0.00964874]
[1644958822228,0.41050403,3114.3,3114.2,0.00420974]
[1644958822430,0.41050403,3114.3,3114.1,0.00266163]
[1644958822631,1.17759191,3114.2,3114.1,0.00266163]
[1644958822830,1.17759191,3114.2,3114.1,0.98904429]
[1644958823031,1.19550297,3114.2,3114.1,0.00266163]
[1644958823286,1.19550297,3114.2,3114.1,0.9890424]
[1644958823287,0.41050403,3114.2,3114.1,0.9890424]
[1644958823492,0.41050403,3114.2,3114.1,0.98638077]
[1644958823889,0.41050403,3114.2,3114.1,4.25526351]
[1644958824087,0.41050403,3114.2,3114.1,0.98638077]
[1644958824287,0.41050403,3114.2,3114.1,0.99059051]
[1644958825089,0.41050403,3114.2,3114.1,0.99070307]
[1644958825289,0.41050403,3114.2,3114.1,0.00420974]
[1644958825490,0.41050403,3114.2,3114.1,0.99069828]
[1644958825689,0.41050403,3114.2,3114.1,0.00420974]
[1644958825889,0.41050403,3114.2,3114.1,0.99080813]
[1644958826097,0.41050403,3114.2,3114.1,0.99080995]
[1644958826390,0.41050403,3114.2,3114.1,0.00420974]
[1644958826590,0.41050403,3114.2,3114.1,0.99080141]
[1644958826789,0.41050403,3114.2,3114.1,0.00420974]
[1644958827430,0.41050403,3114.2,3114.1,0.99076036]
[1644958827830,0.41050403,3114.2,3113.4,0.13347071]
[1644958827831,0.54102994,3113.7,3113.4,0.13347071]
[1644958828027,1.17777191,3113.6,3113.4,0.13347071]
[1644958828427,1.19568297,3113.6,3113.5,1.14849247]
[1644958828632,1.21359403,3113.6,3113.5,1.14849247]
[1644958829227,1.21359403,3113.6,3113.5,0.1616997]
[1644958831083,1.21359403,3113.6,3113.5,0.1142705]
[1644958834826,1.21359403,3113.6,3113.5,0.10266561]
[1644958836030,2.5,3113.5,3113.2,0.01272143]
[1644958836229,1.17787191,3113.4,3113.2,0.01272143]
[1644958836433,0.37468191,3113.3,3113.2,0.81591143]
[1644958836629,0.39259297,3113.3,3113.2,0.01272143]
[1644958836829,0.41050403,3113.3,3113.2,1.00235456]
[1644958837230,0.03582212,3113.3,3113.2,1.00235456]
[1644958837830,0.40683397,3113.3,3113.2,1.00235456]
[1644958838884,2.01320397,3113.3,3113.2,0.01272143]
[1644958839683,2.95320473,3113.3,3113.2,0.01272143]
[1644958841783,2.95320473,3113.3,3112.8,0.21951222]
[1644958841784,3.25320473,3113.3,3112.8,0.21951222]
[1644958842036,4.0,3113.1,3112.5,0.18992867]
[1644958842230,0.37101185,3113.0,3112.6,0.98886938]
[1644958842429,0.01791106,3112.8,3112.6,0.98886938]
[1644958842630,0.37101185,3112.7,3112.6,0.98886938]
[1644958842829,1.38404859,3112.7,3112.6,0.98886938]
[1644958843431,2.18750859,3112.7,3112.6,0.98886938]
[1644958843628,2.18750859,3112.7,3112.6,0.9808898]
[1644958845032,2.18750859,3112.7,3112.5,0.18992867]
[1644958845236,1.81649674,3112.7,3112.5,0.18992867]
[1644958845537,1.81649674,3112.7,3112.5,0.19283713]
[1644958846379,1.81649674,3112.7,3112.5,0.18992867]
[1644958846680,4.5,3112.6,3112.4,0.00270742]
[1644958846886,2.62002724,3112.7,3111.9,1.68131663]
[1644958847178,0.80358,3112.4,3111.9,0.07443663]
[1644958847579,0.01791106,3112.3,3111.9,0.07443663]
[1644958847780,3.38585937,3112.3,3111.9,0.07443663]
[1644958847978,0.90446898,3112.2,3111.9,0.07443663]
[1644958848183,1.64297212,3112.3,3112.2,0.40981957]
[1644958848982,4.85916708,3112.3,3112.2,0.40981957]
[1644958849181,0.03582212,3112.3,3112.2,0.40981957]
[1644958852328,0.03582212,3112.3,3112.2,1.40256872]
[1644958853782,0.03582212,3112.3,3112.2,1.70256872]
[1644958854189,0.03582212,3112.3,3112.2,1.87902044]
[1644958854384,6.6885,3113.6,3112.2,1.49903866]
[1644958854385,3.8779,3113.6,3112.2,1.49903866]
[1644958854587,3.8779,3113.6,3112.4,1.60613]
[1644958854783,3.8779,3113.6,3112.5,0.462]
[1644958854983,0.54102994,3113.7,3112.5,3.61692717]
[1644958855189,0.54102994,3113.7,3112.6,0.23089117]
[1644958855484,0.54102994,3113.7,3113.1,1.12288009]
[1644958855683,0.54102994,3113.7,3113.1,3.02888009]
[1644958856084,0.54102994,3113.7,3113.1,3.26246266]
[1644958856285,0.54102994,3113.7,3113.2,0.98585224]
[1644958856485,0.54102994,3113.7,3113.2,1.78888224]
[1644958856683,0.54102994,3113.7,3113.2,2.59188154]
[1644958857134,0.79102994,3113.7,3113.2,2.4090293]
[1644958857425,0.79102994,3113.7,3113.2,2.7090293]
[1644958857426,0.54102994,3113.7,3113.2,2.7090293]
[1644958857725,0.54102994,3113.7,3113.2,2.4090293]